bitfinex/quotes_ETHUSD_20241104
["timestamp","ask_amount","ask_price","bid_price","bid_amount"]
[1730684680869,4.0607,2462.7,2462.2,4.06133]
[1730684681684,8.12137,2462.7,2462.2,4.06133]
[1730684681898,0.7801,2463.0,2462.4,3.86270793]
[1730684682193,4.06021,2463.0,2462.4,11.98463793]
[1730684682491,4.06021,2463.0,2462.4,7.92365793]
[1730684682689,4.06021,2463.0,2462.5,0.04800842]
[1730684682894,4.06004,2463.1,2462.5,0.04800842]
[1730684683095,4.85020735,2463.1,2462.5,4.10880842]
[1730684683305,4.05976,2463.2,2462.7,4.85137]
[1730684683517,0.0615335,2463.3,2462.8,0.08120867]
[1730684683807,0.0615335,2463.3,2463.1,0.7909]
[1730684684160,0.0615335,2463.3,2463.2,0.04729933]
[1730684689015,4.9012235,2463.3,2463.2,0.04729933]
[1730684689304,4.9012235,2463.3,2462.7,4.06044]
[1730684689305,4.0599,2463.2,2462.7,4.06044]
[1730684689460,4.05996,2463.1,2462.6,0.7909]
[1730684689660,4.05996,2463.1,2462.6,0.87210561]
[1730684689893,4.06025,2462.9,2462.6,0.7909]
[1730684690663,4.06025,2462.9,2462.4,8.71467793]
[1730684691004,4.06025,2462.9,2462.4,4.65360793]
[1730684691005,8.90072,2462.9,2462.4,4.65360793]
[1730684691311,8.90069,2462.9,2462.4,4.65360793]
[1730684691494,4.06042,2462.8,2462.4,4.65360793]
[1730684691667,5.60028542,2462.9,2462.2,4.0614]
[1730684691668,4.06066,2462.7,2462.2,4.0614]
[1730684691871,4.0606,2462.7,2462.2,4.8522]
[1730684692111,4.06044,2462.8,2462.2,4.93341747]
[1730684692425,4.06044,2462.8,2462.3,4.06119]
[1730684692769,5.02651654,2462.8,2462.3,4.06119]
[1730684693682,5.02651654,2462.8,2462.2,4.85216]
[1730684693887,9.08703654,2462.8,2462.2,4.85216]
[1730684694268,4.06058,2462.7,2462.2,4.85216]
[1730684694765,4.06058,2462.7,2462.2,0.7909]
[1730684694965,4.06109,2462.4,2462.0,0.7909]
[1730684695170,4.06149,2462.2,2461.6,4.85315]
[1730684695391,8.12299,2462.2,2461.7,4.06222]
[1730684695594,4.06149,2462.2,2461.7,4.06222]
[1730684696010,4.06158,2462.1,2461.6,4.85329]
[1730684696169,8.12298,2462.2,2461.7,4.06223]
[1730684696365,4.06149,2462.2,2461.7,4.06223]
[1730684696591,4.0616,2462.1,2461.6,4.85329]
[1730684696793,0.406149,2462.2,2461.7,4.06211]
[1730684697068,4.06134,2462.3,2461.7,8.12422]
[1730684697268,4.06134,2462.3,2461.7,4.06211]
[1730684697474,4.06136,2462.3,2461.8,0.04836005]
[1730684697719,4.06141,2462.2,2461.7,8.12422]
[1730684697919,4.06141,2462.2,2461.9,0.04843342]
[1730684698215,4.06141,2462.2,2461.7,8.12422]
[1730684698510,4.06141,2462.2,2461.7,8.12425]
[1730684698680,4.951646,2462.3,2461.7,4.06211]
[1730684698888,0.890266,2462.3,2461.8,0.04851844]
[1730684699088,4.06124,2462.3,2461.7,4.06211]
[1730684699300,4.06124,2462.3,2461.8,0.04851844]
[1730684699507,4.06124,2462.3,2461.7,4.06211]
[1730684699817,4.06124,2462.3,2461.8,0.04851844]
[1730684700175,4.06124,2462.3,2461.6,0.87213918]
[1730684700414,4.06124,2462.3,2461.9,0.04843342]
[1730684700415,0.812244,2462.2,2461.9,0.04843342]
[1730684700610,0.812244,2462.2,2461.7,4.06223]
[1730684701119,4.06143,2462.2,2461.8,0.04851844]
[1730684701419,6.18321575,2462.9,2461.8,8.00588708]
[1730684701628,4.84068,2462.7,2461.9,0.83933342]
[1730684701936,4.84068,2462.7,2462.3,0.7909]
[1730684702515,8.90142,2462.7,2462.4,0.04800838]
[1730684702811,4.06078,2462.6,2462.4,0.04800838]
[1730684703178,4.84068,2462.7,2462.4,0.04800838]
[1730684703512,4.84068,2462.7,2462.2,4.0613]
[1730684703722,4.06035,2462.9,2462.5,0.0479234]
[1730684703921,4.06035,2462.9,2462.3,8.1224]
[1730684704079,8.12069,2462.9,2462.3,4.06116]
[1730684704280,0.7801,2463.0,2462.6,0.7909]
[1730684704500,0.7801,2463.0,2462.7,0.04790008]
[1730684704708,4.84051,2462.8,2462.7,0.04790008]
[1730684705127,0.7801,2462.1,2461.5,0.7909]
[1730684705336,0.7801,2462.1,2461.6,4.06237]
[1730684705501,0.7801,2462.1,2461.5,4.65360793]
[1730684705836,0.7801,2462.1,2461.5,0.7909]
[1730684705837,4.06184,2462.0,2461.5,0.7909]
[1730684706034,4.06184,2462.0,2461.5,4.85341]
[1730684706395,4.06218,2461.8,2461.5,0.7909]
[1730684706597,0.890343,2462.0,2461.2,12.77951793]
[1730684706598,4.06232,2461.7,2461.2,12.77951793]
[1730684706797,4.06184,2462.0,2461.2,12.77951793]
[1730684706798,4.06184,2462.0,2461.4,4.06264]
[1730684707037,4.06184,2462.0,2461.5,0.7909]
[1730684707334,4.06191,2461.9,2461.5,0.7909]
[1730684707836,4.06184,2462.0,2461.5,0.7909]
[1730684708316,8.12369,2462.0,2461.5,0.7909]
[1730684708759,4.06193,2461.9,2461.5,0.7909]
[1730684709131,4.952219,2462.0,2461.5,0.7909]
[1730684709435,4.06184,2462.0,2461.5,0.7909]
[1730684709599,4.06173,2462.0,2461.5,0.7909]
[1730684709795,4.06204,2461.9,2461.5,0.7909]
[1730684710741,4.06173,2462.0,2461.5,0.7909]
[1730684711300,4.06173,2462.0,2461.5,4.85343]
[1730684712305,8.12355,2462.0,2461.5,0.7909]
[1730684712537,4.06233,2461.7,2461.6,0.04592592]
[1730684712738,4.06233,2461.7,2461.3,0.817]
[1730684712945,4.06233,2461.7,2461.6,0.04592592]
[1730684713144,4.874764,2461.7,2461.3,0.817]
[1730684713341,4.874764,2461.7,2461.6,0.04592592]
[1730684713540,4.874764,2461.7,2461.3,0.817]
[1730684713752,4.874764,2461.7,2461.6,0.04592592]
[1730684713971,0.812434,2461.7,2461.3,4.87979]
[1730684714171,4.06198,2461.9,2461.6,0.04592592]
[1730684714466,4.0621,2461.8,2461.3,0.817]
[1730684714626,5.0007753,2461.9,2461.7,0.04584087]
[1730684714829,8.124,2461.9,2461.3,4.87977]
[1730684715053,8.124,2461.9,2461.8,0.04595537]
[1730684715268,8.12396,2461.9,2461.3,4.87986]
[1730684715438,4.06198,2461.9,2461.8,0.04595537]
[1730684715772,5.0007823,2461.9,2461.8,0.04595537]
[1730684715973,5.0007823,2461.9,2461.3,4.87986]
[1730684716168,5.0007823,2461.9,2461.8,0.04595537]
[1730684716470,5.0007823,2461.9,2461.3,4.87986]
[1730684716624,5.0007823,2461.9,2461.8,0.04595537]
[1730684716831,4.06226,2461.7,2461.3,0.817]
[1730684717059,0.9388023,2461.9,2461.3,0.817]
[1730684717263,4.06208,2461.8,2461.4,0.04629555]
[1730684717773,4.06198,2461.9,2461.4,4.10901555]
[1730684717959,4.06225,2461.7,2461.4,0.04629555]
[1730684718365,4.06219,2461.8,2461.4,0.04629555]
[1730684720379,4.06217,2461.8,2461.4,0.04629555]
[1730684720549,4.06226,2461.7,2461.4,0.04629555]
[1730684721770,4.06256,2461.5,2461.4,0.04629555]
[1730684721933,4.06256,2461.5,2460.8,0.817]
[1730684721934,4.06325,2461.1,2460.8,0.817]
[1730684722131,4.06346,2461.0,2460.5,0.817]
[1730684722371,4.06371,2460.9,2460.5,0.817]
[1730684722964,4.0634,2461.0,2460.5,0.817]
[1730684723288,4.0634,2461.0,2460.5,4.88112]
[1730684723435,4.06358,2460.9,2460.5,0.817]
[1730684724137,4.0634,2461.0,2460.5,0.817]
[1730684724138,4.06374,2460.8,2460.5,0.817]
[1730684725636,4.0634,2461.0,2460.5,0.817]
[1730684725976,1.600343,2461.7,2460.9,4.64500793]
[1730684726191,4.0625,2461.6,2461.0,4.06325]
[1730684726484,4.06257,2461.5,2461.0,4.06338]
[1730684726855,4.06273,2461.4,2460.9,8.70855793]
[1730684727366,4.06257,2461.5,2460.9,0.7823]
[1730684727569,4.06304,2461.3,2461.0,0.04390919]
[1730684727784,4.06322,2461.1,2461.0,0.04390919]
[1730684728089,4.06358,2460.9,2460.6,0.7823]
[1730684728383,4.06381,2460.8,2460.7,0.04418272]
[1730684728590,4.06381,2460.8,2460.3,4.84684]
[1730684728771,4.06381,2460.8,2460.7,0.04418272]
[1730684729083,4.85148,2460.9,2460.3,0.7823]
[1730684729289,4.06379,2460.8,2460.7,0.04418272]
[1730684729584,4.955237,2460.8,2460.7,0.04141925]
[1730684729798,4.0639,2460.7,2460.3,0.7823]
[1730684730088,4.955277,2460.8,2460.3,4.84676]
[1730684730293,4.85147,2460.9,2460.4,4.06437]
[1730684730459,8.91513,2460.9,2460.4,4.06437]
[1730684730782,4.85147,2460.9,2460.4,4.06437]
[1730684730943,4.06386,2460.8,2460.3,0.7823]
[1730684731139,8.91516,2460.9,2460.4,4.06436]
[1730684731444,4.06357,2460.9,2460.4,4.06436]
[1730684731786,8.12727,2460.9,2460.4,4.06436]
[1730684731987,4.06357,2460.9,2460.5,4.06417]
[1730684732188,8.91461,2461.1,2460.6,4.06394]
[1730684732393,4.06359,2460.9,2460.4,4.06427]
[1730684732689,4.06359,2460.9,2460.3,8.70942793]
[1730684732690,4.06391,2460.7,2460.3,0.7823]
[1730684732856,4.06372,2460.8,2460.3,4.84675]
[1730684733562,4.06391,2460.7,2460.3,4.84675]
[1730684733960,4.06359,2460.9,2460.3,8.70938793]
[1730684734262,4.06359,2460.9,2460.4,4.06435]
[1730684735191,8.12725,2460.9,2460.4,4.06435]
[1730684736248,4.06359,2460.9,2460.4,4.06435]
[1730684736451,4.06372,2460.8,2460.4,4.06435]
[1730684737188,8.612439,2460.9,2460.4,4.06435]
[1730684737393,4.06374,2460.8,2460.4,4.06435]
[1730684737684,0.8294,2460.8,2460.2,0.0609539]
[1730684738047,4.0644,2460.4,2460.2,0.0609539]
[1730684738246,4.06454,2460.3,2460.2,0.0609539]
[1730684741476,3.0,2460.5,2460.2,0.0609539]
[1730684741681,7.06426,2460.5,2460.2,0.0609539]
[1730684742195,4.06438,2460.4,2460.2,0.0609539]
[1730684742361,5.17027695,2460.4,2460.2,0.0609539]
[1730684742561,5.17027695,2460.4,2460.3,0.04714139]
[1730684742795,5.17027695,2460.4,2460.2,0.0609539]
[1730684742956,5.17027695,2460.4,2460.3,0.04714139]
[1730684743157,4.06454,2460.3,2460.2,0.0609539]
[1730684743353,5.4981134,2460.3,2460.2,0.0609539]
[1730684744450,1.4335734,2460.3,2459.5,0.7696]
[1730684744680,4.06537,2459.8,2459.5,0.7696]
[1730684745051,4.06544,2459.8,2459.5,0.7696]
[1730684745503,4.06556,2459.7,2459.5,0.7696]
[1730684745713,4.06544,2459.8,2459.5,0.7696]
[1730684746558,8.13095,2459.8,2459.5,0.7696]
[1730684746984,4.06544,2459.8,2459.5,0.7696]
[1730684747163,0.895999,2459.8,2459.5,0.7696]
[1730684747468,4.06564,2459.7,2459.3,0.7696]
[1730684747669,4.06588,2459.5,2459.1,0.7696]
[1730684747983,4.06605,2459.4,2459.1,0.7696]
[1730684748357,4.06588,2459.5,2459.1,0.7696]
[1730684749259,0.406564,2459.6,2459.1,0.7696]
[1730684749560,4.06561,2459.7,2459.2,4.06634]
[1730684750175,8.13124,2459.7,2459.2,4.06634]
[1730684750521,4.06588,2459.5,2459.1,0.7696]
[1730684750723,4.06588,2459.5,2458.8,7.92960793]
[1730684750724,0.406588,2459.4,2458.8,4.8365]
[1730684750889,4.06612,2459.4,2458.9,4.06677]
[1730684751092,4.0662,2459.3,2458.8,4.8365]
[1730684751298,0.40662,2459.2,2458.8,4.8365]
[1730684751511,4.06652,2459.2,2458.8,0.7696]
[1730684751727,0.8294,2459.4,2458.4,0.7696]
[1730684752036,4.06717,2458.8,2458.4,0.7696]
[1730684752233,4.88057,2458.8,2458.4,0.7696]
[1730684753528,3.0,2459.1,2458.7,4.06715]
[1730684753685,7.06653,2459.1,2458.6,8.13453]
[1730684753887,7.06653,2459.1,2458.6,4.06726]
[1730684754210,4.06669,2459.0,2458.4,4.83716]
[1730684754528,4.06669,2459.0,2458.5,4.06751]
[1730684754736,1.196239,2459.1,2458.4,0.7696]
[1730684754882,1.196239,2459.1,2458.4,4.83717]
[1730684754883,4.06662,2459.1,2458.4,4.83717]
[1730684755085,8.13327,2459.1,2458.6,4.06735]
[1730684755323,4.06662,2459.1,2458.6,4.06735]
[1730684755635,9.029514,2459.1,2458.6,4.06735]
[1730684755989,4.962854,2459.1,2458.6,4.06735]
[1730684756410,0.896234,2459.1,2458.6,4.06735]
[1730684756611,4.06657,2459.1,2458.6,4.06735]
[1730684756827,4.06657,2459.1,2458.4,8.90475]
[1730684756994,4.06679,2459.0,2458.5,4.06742]
[1730684757385,4.06657,2459.1,2458.6,4.06734]
[1730684757645,8.13319,2459.1,2458.6,4.12177389]
[1730684757823,4.06657,2459.1,2458.6,4.12177389]
[1730684757987,8.13321,2459.1,2458.6,4.12177389]
[1730684758323,0.8294,2459.3,2458.8,4.06692]
[1730684758324,4.89569,2459.3,2458.8,4.06692]
[1730684758619,5.791853,2459.3,2458.9,0.05948045]
[1730684758822,9.858183,2459.3,2458.9,0.05948045]
[1730684759230,4.06669,2459.0,2458.9,0.05948045]
[1730684759437,8.13346,2459.0,2458.5,4.06743]
[1730684759596,4.880005,2459.0,2458.9,0.05948045]
[1730684759935,4.880005,2459.0,2458.5,4.06743]
[1730684760140,4.06655,2459.1,2458.6,4.0673]
[1730684760434,4.89569,2459.3,2458.6,4.0673]
[1730684760435,8.96204,2459.3,2458.7,8.90385]
[1730684760639,8.96204,2459.3,2458.7,8.96358617]
[1730684760843,4.89569,2459.3,2458.7,4.89640617]
[1730684760996,4.06618,2459.4,2458.8,4.06694]
[1730684761201,4.06629,2459.3,2458.8,4.12134591]
[1730684761840,4.06618,2459.4,2459.0,4.06665]
[1730684762270,4.06622,2459.3,2459.1,0.05946297]
[1730684762579,4.06618,2459.4,2458.9,4.06676]
[1730684762725,4.06618,2459.4,2459.2,0.05933515]
[1730684762925,4.06618,2459.4,2458.9,4.06676]
[1730684763175,4.06618,2459.4,2459.0,0.05959081]
[1730684763380,4.0662,2459.3,2459.0,0.05959081]
[1730684763529,4.06618,2459.4,2459.0,0.05959081]
[1730684763851,4.06534,2459.9,2459.2,4.06636]
[1730684764052,4.06534,2459.9,2459.4,4.06593]
[1730684764053,4.06527,2459.9,2459.4,4.06593]
[1730684764379,4.961255,2459.9,2459.5,0.06550194]
[1730684765057,0.895985,2459.9,2459.6,4.06568]
[1730684765383,4.89423,2460.2,2459.7,4.06543]
[1730684765667,4.06495,2460.1,2459.7,0.0489135]
[1730684765855,0.895918,2460.1,2459.7,0.0489135]
[1730684766054,4.06455,2460.3,2459.8,4.06524]
[1730684766229,4.06455,2460.3,2459.8,4.11404703]
[1730684766427,0.8294,2460.4,2460.0,4.06503]
[1730684766831,0.8294,2460.4,2460.1,0.04848768]
[1730684767073,4.89382,2460.4,2460.1,0.04848768]
[1730684767481,0.8294,2460.4,2460.1,0.04848768]
[1730684767864,4.89345,2460.6,2460.1,0.04848768]
[1730684768177,4.89345,2460.6,2460.1,4.11331768]
[1730684768178,3.0,2460.5,2460.1,4.11331768]
[1730684769103,3.0,2460.5,2460.1,0.04848768]
[1730684769484,0.7688,2460.8,2460.2,0.8016]
[1730684769687,4.06357,2460.9,2460.3,4.0644]
[1730684769886,4.06372,2460.8,2460.3,4.12876644]
[1730684770391,4.06357,2460.9,2460.4,4.06436]
[1730684770629,4.83219,2461.0,2460.5,4.06413]
[1730684770925,4.83219,2461.0,2460.5,4.12821268]
[1730684771088,4.06368,2460.9,2460.5,0.06408268]
[1730684771274,4.83219,2461.0,2460.5,4.12819268]
[1730684771476,4.83219,2461.0,2460.5,4.06411]
[1730684771675,4.06324,2461.1,2460.6,4.1351273]
[1730684771919,4.06324,2461.1,2460.7,0.8016]
[1730684772215,3.0,2461.1,2460.8,0.07084814]
[1730684772419,3.0,2461.3,2460.8,0.49364081]
[1730684772420,4.06301,2461.3,2460.8,0.49364081]
[1730684772587,4.06301,2461.3,2460.9,0.07068859]
[1730684772815,4.06301,2461.3,2460.8,4.06367]
[1730684773010,4.06309,2461.2,2461.0,0.07052904]
[1730684773207,4.06309,2461.2,2460.7,4.86538]
[1730684773411,4.06309,2461.2,2461.1,0.07036951]
[1730684773600,4.952479,2461.3,2460.7,4.86533]
[1730684773962,4.83148,2461.5,2461.1,0.07036951]
[1730684774113,4.83114,2461.7,2461.1,4.06319]
[1730684774305,4.69822437,2461.8,2461.3,4.06287]
[1730684774495,0.95290244,2461.8,2461.3,4.06278]
[1730684774700,4.062,2461.9,2461.3,4.06278]
[1730684774701,4.062,2461.9,2461.4,0.871491]
[1730684774897,0.7688,2462.0,2461.5,4.06254]
[1730684775228,4.06166,2462.1,2461.6,4.13187205]
[1730684775542,4.06173,2462.0,2461.6,0.06957205]
[1730684775913,4.95084,2462.1,2461.6,0.06957205]
[1730684776146,0.88918,2462.1,2461.6,0.06957205]
[1730684776440,0.88918,2462.1,2461.6,4.13195205]
[1730684777051,4.06174,2462.0,2461.6,0.06957205]
[1730684777220,4.06157,2462.1,2461.6,0.06957205]
[1730684777404,4.06129,2462.3,2461.8,4.86361]
[1730684777607,4.06129,2462.3,2461.8,0.8016]
[1730684777810,4.873537,2462.3,2461.9,0.09212498]
[1730684778210,4.06141,2462.2,2461.9,0.09212498]
[1730684779161,4.06173,2462.0,2461.9,0.09212498]
[1730684779330,4.874043,2462.0,2461.9,0.09212498]
[1730684779531,4.06173,2462.0,2461.6,0.8016]
[1730684780061,3.7688,2462.6,2461.6,0.8016]
[1730684780062,4.06083,2462.6,2461.7,0.96217319]
[1730684780284,4.8293,2462.8,2462.2,4.0614]
[1730684780465,4.0605,2462.8,2462.3,4.86275]
[1730684780762,4.0605,2462.8,2462.3,4.95402487]
[1730684781065,4.05987,2463.2,2462.7,0.8016]
[1730684781434,4.05987,2463.2,2462.8,0.09021263]
[1730684781762,4.1211635,2463.3,2462.7,0.8016]
[1730684781921,4.54874635,2463.2,2462.9,0.09000023]
[1730684782120,4.54874635,2463.2,2462.7,4.86215]
[1730684782320,4.54874635,2463.2,2463.0,0.08978785]
[1730684782521,4.54874635,2463.2,2462.7,0.8016]
[1730684782872,0.48899635,2463.2,2462.7,0.8016]
[1730684783079,4.05993,2463.1,2462.8,0.09021263]
[1730684783240,0.0615335,2463.3,2462.8,4.0604]
[1730684783557,0.0615335,2463.3,2463.0,4.86779]
[1730684783861,0.0615335,2463.3,2463.1,4.14939549]
[1730684784103,0.0615335,2463.3,2463.2,4.05975]
[1730684784259,0.0615335,2463.3,2463.2,4.86755]
[1730684784420,0.0615335,2463.3,2463.2,5.03809005]
[1730684784627,0.0615335,2463.3,2463.2,6.23497283]
[1730684785821,0.0615335,2463.3,2463.2,6.31615081]
[1730684786227,0.0615335,2463.3,2463.2,6.78497283]
[1730684786545,0.0615335,2463.3,2463.2,6.23497283]
[1730684786750,0.0615335,2463.3,2463.2,6.8661499]
[1730684786949,0.0615335,2463.3,2463.2,6.78497283]
[1730684787750,0.0615335,2463.3,2463.2,6.23497283]
[1730684787980,0.0615335,2463.3,2463.2,2.17522283]
[1730684788179,4.0587,2463.9,2463.3,4.05955]
[1730684788557,8.11741,2463.9,2463.3,4.0595]
[1730684788782,4.0587,2463.9,2463.3,4.0595]
[1730684788991,4.0587,2463.9,2463.3,4.05949]
[1730684789177,7.0583,2464.1,2463.5,4.05917]
[1730684789178,11.11671,2464.1,2463.5,4.05917]
[1730684789589,7.0583,2464.1,2463.4,0.486729]
[1730684789800,4.05862,2463.9,2463.4,4.546129]
[1730684790088,4.05862,2463.9,2463.5,0.8605579]
[1730684790791,4.05862,2463.9,2463.4,0.486729]
[1730684790950,4.05895,2463.7,2463.4,0.486729]
[1730684791158,4.05936,2463.5,2463.2,0.8078]
[1730684791368,4.05905,2463.7,2463.2,4.86754]
[1730684791793,8.11813,2463.7,2463.2,0.8078]
[1730684791998,8.11813,2463.7,2463.2,1.294572]
[1730684792184,4.05911,2463.6,2463.2,1.294572]
[1730684792682,4.05904,2463.7,2463.2,1.294572]
[1730684792892,8.11809,2463.7,2463.2,1.294572]
[1730684793196,4.0593,2463.5,2463.2,1.294572]
[1730684793508,4.0593,2463.5,2463.0,0.8078]
[1730684793798,8.11869,2463.5,2463.0,0.8078]
[1730684794150,4.05953,2463.4,2463.0,0.8078]
[1730684794287,4.05867,2463.9,2463.3,4.05948]
[1730684794288,4.89046,2463.9,2463.3,4.05948]
[1730684794463,4.05885,2463.8,2463.5,0.8078]
[1730684795898,4.05855,2464.0,2463.5,0.8078]
[1730684796106,4.05855,2464.0,2463.5,5.3943828]
[1730684796269,4.05863,2463.9,2463.5,1.3351228]
[1730684796594,4.05879,2463.8,2463.5,1.3351228]
[1730684797012,4.05904,2463.7,2463.2,0.8078]
[1730684797362,4.05904,2463.7,2463.2,4.86754]
[1730684797561,4.05877,2463.8,2463.3,4.05944]
[1730684797801,4.05867,2463.9,2463.3,0.94334683]
[1730684798003,4.05895,2463.7,2463.3,0.94334683]
[1730684798596,4.05927,2463.5,2463.3,0.94334683]
[1730684798801,4.05914,2463.6,2463.2,0.8078]
[1730684799106,8.11767,2463.8,2463.2,4.86743]
[1730684799325,8.11767,2463.8,2463.3,0.486743]
[1730684799477,4.05897,2463.7,2463.3,0.486743]
[1730684800430,4.05855,2464.0,2463.4,4.05935]
[1730684800593,3.0,2464.1,2463.6,4.88388]
[1730684800793,4.0582,2464.2,2463.7,4.05889]
[1730684801032,4.0582,2464.2,2463.7,4.99943084]
[1730684801344,4.05791,2464.4,2463.7,5.58794305]
[1730684801498,4.05791,2464.4,2463.9,8.11704]
[1730684802021,4.05791,2464.4,2463.9,4.05852]
[1730684802209,4.05791,2464.4,2463.9,5.01504891]
[1730684802409,4.1191735,2464.5,2464.0,4.88314]
[1730684802927,0.0615335,2464.5,2464.1,4.05818]
[1730684803132,0.0615335,2464.5,2464.2,0.488298]
[1730684803504,0.0615335,2464.5,2464.2,4.546388]
[1730684803830,0.0615335,2464.5,2464.2,0.488298]
[1730684804844,4.05778,2464.4,2464.0,4.88323]
[1730684805003,4.05778,2464.4,2464.0,0.8248]
[1730684805309,0.0615335,2464.5,2464.0,1.40879789]
[1730684805741,4.1191635,2464.5,2464.0,5.46714789]
[1730684806441,4.05782,2464.4,2464.0,1.40879789]
[1730684807207,4.05802,2464.3,2464.0,1.40879789]
[1730684807545,4.05782,2464.4,2463.6,0.8248]
[1730684807546,4.05837,2464.1,2463.6,0.8248]
[1730684807751,4.05859,2464.0,2463.6,0.8248]
[1730684808415,4.05861,2463.9,2463.6,0.8248]
[1730684808612,4.05873,2463.9,2463.6,0.8248]
[1730684808931,4.05873,2463.9,2463.4,4.88416]
[1730684809248,4.05892,2463.8,2463.4,1.230747]
[1730684810030,4.05894,2463.7,2463.4,0.8248]
[1730684810234,4.05894,2463.7,2463.2,0.8248]
[1730684810780,4.05913,2463.6,2463.2,0.8248]
[1730684810929,4.05894,2463.7,2463.2,0.8248]
[1730684811131,0.7639,2463.8,2463.2,0.90598799]
[1730684811445,4.05893,2463.7,2463.2,0.8248]
[1730684811646,4.82277,2463.8,2463.2,0.8248]
[1730684811954,4.05901,2463.7,2463.2,5.372927]
[1730684812435,4.05901,2463.7,2463.2,1.313277]
[1730684812647,4.05901,2463.7,2463.0,8.94472]
[1730684812831,4.05927,2463.5,2463.0,4.88485]
[1730684813464,8.11866,2463.5,2463.0,4.88485]
[1730684813666,4.05927,2463.5,2463.0,0.8248]
[1730684813872,8.11861,2463.5,2463.0,0.8248]
[1730684814231,4.05945,2463.4,2463.0,0.8248]
[1730684815156,4.05926,2463.5,2462.7,0.8248]
[1730684815360,4.05997,2463.1,2462.7,0.8248]
[1730684815570,0.7639,2463.1,2462.5,0.8248]
[1730684815770,0.7639,2463.1,2462.5,1.313377]
[1730684815935,8.12041,2463.0,2462.5,1.313377]
[1730684816367,4.06034,2462.9,2462.5,0.8248]
[1730684816573,4.06027,2462.9,2462.5,0.8248]
[1730684816880,4.06042,2462.8,2462.5,0.8248]
[1730684817846,4.06058,2462.7,2462.3,0.8248]
[1730684818050,4.06035,2462.9,2462.3,5.374629]
[1730684818252,4.06035,2462.9,2462.3,5.50755869]
[1730684818455,4.06059,2462.7,2462.3,1.44633869]
[1730684818980,4.06046,2462.8,2462.3,1.44633869]
[1730684819288,4.06046,2462.8,2462.3,1.40283489]
[1730684819876,4.06035,2462.9,2462.3,1.40283489]
[1730684820053,4.06035,2462.9,2462.4,4.06106]
[1730684820236,4.82393,2463.1,2462.4,4.06106]
[1730684820237,4.06003,2463.1,2462.5,4.14209837]
[1730684820436,4.0596,2463.3,2462.8,0.8248]
[1730684820877,3.0,2463.5,2462.8,0.93109136]
[1730684821079,4.06008,2463.1,2462.8,0.93109136]
[1730684821291,0.7639,2463.3,2462.8,0.10629136]
[1730684821292,4.06025,2462.9,2462.8,0.10629136]
[1730684821458,4.06025,2462.9,2462.6,0.8248]
[1730684821646,4.06025,2462.9,2462.8,0.08857613]
[1730684821846,4.06025,2462.9,2462.6,0.8248]
[1730684822069,4.82358,2463.3,2462.8,0.10629136]
[1730684822248,4.82358,2463.3,2462.6,4.88542]
[1730684822249,0.7639,2463.3,2462.6,4.88542]
[1730684822444,8.12006,2463.1,2462.8,0.08857613]
[1730684822643,8.12006,2463.1,2462.6,5.780057]
[1730684822644,4.06002,2463.1,2462.6,5.780057]
[1730684822849,4.06002,2463.1,2462.8,0.08857613]
[1730684823057,4.06002,2463.1,2462.6,5.780057]
[1730684823265,8.12002,2463.1,2462.8,0.08857613]
[1730684823543,0.7639,2463.3,2462.7,0.5780057]
[1730684823544,4.0597,2463.3,2462.7,0.66679424]
[1730684823748,4.05943,2463.4,2462.9,4.88503]
[1730684823963,4.05961,2463.3,2462.9,0.8248]
[1730684824884,4.05981,2463.2,2462.9,0.8248]
[1730684825084,4.05994,2463.1,2462.5,0.8248]
[1730684825399,4.0602,2463.0,2462.5,5.4579894]
[1730684825607,8.12,2463.1,2462.6,0.08900098]
[1730684825816,8.12,2463.1,2462.6,0.13350147]
[1730684826014,4.06021,2463.0,2462.6,0.13350147]
[1730684826505,4.06029,2462.9,2462.6,0.08878854]
[1730684827214,4.06021,2463.0,2462.6,0.64347433]
[1730684827512,4.06034,2462.9,2462.6,0.08878854]
[1730684827869,4.06021,2463.0,2462.6,0.08878854]
[1730684828771,4.06034,2462.9,2462.6,0.08878854]
[1730684829310,4.06021,2463.0,2462.6,0.08878854]
[1730684829609,8.12043,2463.0,2462.6,0.08878854]
[1730684829908,4.06027,2462.9,2462.6,0.08878854]
[1730684830109,4.06058,2462.7,2462.6,0.08878854]
[1730684830314,4.06058,2462.7,2462.3,0.7629]
[1730684830472,4.06058,2462.7,2462.6,0.10680117]
[1730684830672,4.06058,2462.7,2462.3,0.7629]
[1730684830878,4.06058,2462.7,2462.6,0.08888364]
[1730684831207,7.06001,2463.1,2462.4,0.84411974]
[1730684831415,4.05969,2463.3,2462.7,4.06045]
[1730684831625,4.05944,2463.4,2462.9,0.7629]
[1730684832117,4.05961,2463.3,2462.9,0.7629]
[1730684832279,4.05944,2463.4,2462.9,2.08650579]
[1730684832609,2.13095144,2464.2,2462.9,2.08650579]
[1730684832610,0.7603,2463.9,2463.1,0.7629]
[1730684832922,0.7603,2463.9,2463.1,8.68382457]
[1730684832923,4.05905,2463.7,2463.1,8.68382457]
[1730684833070,0.7603,2463.9,2463.1,8.68382457]
[1730684833071,4.0592,2463.6,2463.1,8.68382457]
[1730684833276,4.0592,2463.6,2463.1,9.95822103]
[1730684833475,4.05919,2463.6,2463.1,9.95822103]
[1730684834173,4.05935,2463.5,2463.1,2.03729646]
[1730684834381,4.05919,2463.6,2463.1,6.09714646]
[1730684834713,8.1184,2463.6,2463.1,0.7629]
[1730684834912,4.05877,2463.8,2463.1,0.7629]
[1730684835217,4.0591,2463.6,2463.1,0.7629]
[1730684835720,4.05953,2463.4,2463.1,0.7629]
[1730684837981,0.7603,2463.9,2463.1,0.7629]
[1730684838183,4.05918,2463.6,2463.1,0.7629]
[1730684838413,4.05947,2463.4,2463.1,0.7629]
[1730684840217,4.05921,2463.6,2463.1,9.38344213]